[Event "Late-Titled-Tuesday-Blitz-May-07-2024"]
[Site "Chess.com"]
[Date "2024.05.07"]
[Round "3"]
[White "Romkachess"]
[Black "almaguerjm"]
[Result "1-0"]
[WhiteElo "2615"]
[BlackElo "2403"]
[TimeControl "180+1"]
[EndTime "14:29:05 PDT"]
[Termination "Romkachess won by resignation"]

1. e4 {[%clk 0:02:55.1]} 1... e5 {[%clk 0:02:58.1]} 2. d4 {[%clk 0:02:49.8]}
2... exd4 {[%clk 0:02:57.4]} 3. Qxd4 {[%clk 0:02:44.9]} 3... Nc6 {[%clk
0:02:56.1]} 4. Qe3 {[%clk 0:02:44.9]} 4... b6 {[%clk 0:02:46.3]} 5. Nc3 {[%clk
0:02:43.9]} 5... Bb4 {[%clk 0:02:36.1]} 6. Bd2 {[%clk 0:02:42.2]} 6... Nge7
{[%clk 0:02:34.3]} 7. O-O-O {[%clk 0:02:41.4]} 7... O-O {[%clk 0:02:33.6]} 8. h4
{[%clk 0:02:40.7]} 8... f5 {[%clk 0:02:27.7]} 9. Bc4+ {[%clk 0:02:39.3]} 9...
Kh8 {[%clk 0:02:27.3]} 10. h5 {[%clk 0:02:35.9]} 10... f4 {[%clk 0:02:23.3]} 11.
Qe1 {[%clk 0:02:32.8]} 11... Ne5 {[%clk 0:02:22.3]} 12. Bb3 {[%clk 0:02:31.6]}
12... N7c6 {[%clk 0:02:15.9]} 13. h6 {[%clk 0:02:30.5]} 13... gxh6 {[%clk
0:01:58.2]} 14. a3 {[%clk 0:02:12.5]} 14... Be7 {[%clk 0:01:52.4]} 15. Nd5
{[%clk 0:01:58.7]} 15... Bg5 {[%clk 0:01:50.4]} 16. Nf3 {[%clk 0:01:49.4]} 16...
Nxf3 {[%clk 0:01:33.4]} 17. gxf3 {[%clk 0:01:50.3]} 17... Ne5 {[%clk 0:01:31.7]}
18. Bc3 {[%clk 0:01:47]} 18... d6 {[%clk 0:01:30.8]} 19. Bxe5+ {[%clk
0:00:51.9]} 19... dxe5 {[%clk 0:01:28.1]} 20. Nxb6 {[%clk 0:00:52.2]} 20... Qe7
{[%clk 0:01:20.1]} 21. Nxa8 {[%clk 0:00:41.9]} 21... Bb7 {[%clk 0:01:20.3]} 22.
Qb4 {[%clk 0:00:26.9]} 22... c5 {[%clk 0:01:09.8]} 23. Qa4 {[%clk 0:00:18.7]}
23... Bxa8 {[%clk 0:01:03.8]} 24. Rd7 {[%clk 0:00:18.5]} 24... Qe8 {[%clk
0:01:00.6]} 25. Qxa7 {[%clk 0:00:18.7]} 25... Qg6 {[%clk 0:01:00.9]} 26. Bf7
{[%clk 0:00:16.1]} 26... Qf6 {[%clk 0:00:55.5]} 27. Bd5 {[%clk 0:00:16.2]} 27...
Bxd5 {[%clk 0:00:52.6]} 28. Rxh7+ {[%clk 0:00:16.7]} 28... Kg8 {[%clk
0:00:53.1]} 29. exd5 {[%clk 0:00:17.3]} 29... e4 {[%clk 0:00:52.3]} 30. fxe4
{[%clk 0:00:16.4]} 30... f3+ {[%clk 0:00:52]} 31. Kb1 {[%clk 0:00:16.9]} 31...
Qg6 {[%clk 0:00:51.1]} 32. Rd7 {[%clk 0:00:04.7]} 32... Re8 {[%clk 0:00:44.1]}
33. Re1 {[%clk 0:00:03.4]} 33... c4 {[%clk 0:00:42.2]} 34. Qc7 {[%clk
0:00:02.4]} 34... Bd2 {[%clk 0:00:40.3]} 35. Rd1 {[%clk 0:00:02.4]} 35... c3
{[%clk 0:00:40.6]} 36. Qc6 {[%clk 0:00:02.5]} 36... Qxe4 {[%clk 0:00:30.9]} 37.
Rg1+ {[%clk 0:00:02.9]} 37... Bg5 {[%clk 0:00:31.2]} 38. Rd6 {[%clk 0:00:01.5]}
38... Kf7 {[%clk 0:00:21.1]} 39. Re6 {[%clk 0:00:02.1]} 39... Rxe6 {[%clk
0:00:20.6]} 40. dxe6+ {[%clk 0:00:03]} 40... Qxe6 {[%clk 0:00:20.2]} 41. Qxe6+
{[%clk 0:00:03.9]} 41... Kxe6 {[%clk 0:00:21]} 42. bxc3 {[%clk 0:00:04.8]} 42...
Kd5 {[%clk 0:00:21.2]} 43. Rd1+ {[%clk 0:00:04.5]} 43... Kc4 {[%clk 0:00:21.5]}
44. Kb2 {[%clk 0:00:05.1]} 44... Bh4 {[%clk 0:00:20]} 45. Rd3 {[%clk 0:00:06]}
45... Bxf2 {[%clk 0:00:20.4]} 46. Rxf3 {[%clk 0:00:06.5]} 46... Bc5 {[%clk
0:00:19.5]} 47. a4 {[%clk 0:00:07.4]} 47... Be7 {[%clk 0:00:19.4]} 48. Rh3
{[%clk 0:00:08.3]} 48... Bg5 {[%clk 0:00:19.7]} 49. Ka3 {[%clk 0:00:08.3]} 49...
Be7+ {[%clk 0:00:19.1]} 50. Kb2 {[%clk 0:00:08.5]} 50... Bg5 {[%clk 0:00:20]}
51. Rg3 {[%clk 0:00:08.2]} 51... Bd2 {[%clk 0:00:16.8]} 52. Rg4+ {[%clk
0:00:08.4]} 52... Kc5 {[%clk 0:00:16.8]} 53. Kb3 {[%clk 0:00:09.3]} 53... Be3
{[%clk 0:00:16.6]} 54. Rc4+ {[%clk 0:00:09.7]} 54... Kb6 {[%clk 0:00:16.7]} 55.
Re4 {[%clk 0:00:10.1]} 55... Bf2 {[%clk 0:00:16.5]} 56. Re5 {[%clk 0:00:10.4]}
56... Bg3 {[%clk 0:00:15.5]} 57. Rh5 {[%clk 0:00:11.3]} 57... Bf4 {[%clk
0:00:15.6]} 58. Kc4 {[%clk 0:00:12.1]} 58... Ka6 {[%clk 0:00:15.4]} 59. Kb4
{[%clk 0:00:12.2]} 59... Bg5 {[%clk 0:00:15.9]} 60. c4 {[%clk 0:00:12.4]} 60...
Bd2+ {[%clk 0:00:15.2]} 61. c3 {[%clk 0:00:12.9]} 61... Bg5 {[%clk 0:00:15.2]}
62. a5 {[%clk 0:00:13]} 62... Bd8 {[%clk 0:00:14.5]} 63. Rd5 {[%clk 0:00:12.3]}
63... Bg5 {[%clk 0:00:14.6]} 64. Rd6+ {[%clk 0:00:11.9]} 64... Ka7 {[%clk
0:00:15.3]} 65. Kb5 {[%clk 0:00:12.3]} 65... Be7 {[%clk 0:00:15.8]} 66. Rd7+
{[%clk 0:00:12.9]} 1-0

[Event "Late-Titled-Tuesday-Blitz-May-07-2024"]
[Site "Chess.com"]
[Date "2024.05.07"]
[Round "3"]
[White "divudis17"]
[Black "Mariia89"]
[Result "1-0"]
[WhiteElo "2446"]
[BlackElo "2224"]
[TimeControl "180+1"]
[EndTime "14:29:07 PDT"]
[Termination "divudis17 won on time"]

1. d4 {[%clk 0:02:51.8]} 1... Nf6 {[%clk 0:02:58.8]} 2. Nf3 {[%clk 0:02:51.9]}
2... c5 {[%clk 0:02:59.4]} 3. d5 {[%clk 0:02:45.4]} 3... d6 {[%clk 0:02:59.4]}
4. Nc3 {[%clk 0:02:43.8]} 4... b5 {[%clk 0:02:59.6]} 5. Nxb5 {[%clk 0:02:39.2]}
5... g6 {[%clk 0:02:55.8]} 6. Nc3 {[%clk 0:02:37.5]} 6... Bg7 {[%clk 0:02:56.1]}
7. e4 {[%clk 0:02:37.9]} 7... O-O {[%clk 0:02:56.3]} 8. Be2 {[%clk 0:02:32.9]}
8... Ba6 {[%clk 0:02:56.5]} 9. O-O {[%clk 0:02:30.3]} 9... Nfd7 {[%clk
0:02:54.7]} 10. Nb5 {[%clk 0:02:08]} 10... Bxb5 {[%clk 0:02:32]} 11. Bxb5 {[%clk
0:02:05.6]} 11... Qb6 {[%clk 0:02:32.3]} 12. Bxd7 {[%clk 0:01:52]} 12... Nxd7
{[%clk 0:02:31.8]} 13. c3 {[%clk 0:01:51.6]} 13... a5 {[%clk 0:02:30.5]} 14. Qc2
{[%clk 0:01:42.6]} 14... a4 {[%clk 0:02:30.2]} 15. Bf4 {[%clk 0:01:39]} 15...
Qa5 {[%clk 0:02:26.1]} 16. Rab1 {[%clk 0:01:38]} 16... Rfb8 {[%clk 0:02:26.1]}
17. Nd2 {[%clk 0:01:29.3]} 17... Qa6 {[%clk 0:02:15.6]} 18. Rfe1 {[%clk
0:01:28.2]} 18... a3 {[%clk 0:02:04.8]} 19. b3 {[%clk 0:01:26.4]} 19... Nb6
{[%clk 0:01:57.3]} 20. Be3 {[%clk 0:01:06.4]} 20... h5 {[%clk 0:01:34.4]} 21. h3
{[%clk 0:01:05.9]} 21... Qc8 {[%clk 0:01:28.4]} 22. c4 {[%clk 0:00:54.7]} 22...
Nd7 {[%clk 0:01:06.7]} 23. f4 {[%clk 0:00:53]} 23... Qa6 {[%clk 0:00:58.1]} 24.
Nf3 {[%clk 0:00:43.7]} 24... Qa5 {[%clk 0:00:56.4]} 25. Bd2 {[%clk 0:00:43.2]}
25... Qc7 {[%clk 0:00:54.9]} 26. Bc3 {[%clk 0:00:43.1]} 26... Bh6 {[%clk
0:00:43.3]} 27. e5 {[%clk 0:00:30.7]} 27... Bxf4 {[%clk 0:00:39.1]} 28. e6
{[%clk 0:00:31.1]} 28... Nf6 {[%clk 0:00:36.1]} 29. exf7+ {[%clk 0:00:21.5]}
29... Kxf7 {[%clk 0:00:37]} 30. Qe2 {[%clk 0:00:14.8]} 30... Qd7 {[%clk
0:00:34.8]} 31. Rf1 {[%clk 0:00:09]} 31... Kg8 {[%clk 0:00:30.7]} 32. Nd2 {[%clk
0:00:09.1]} 32... Bxd2 {[%clk 0:00:25.2]} 33. Qxd2 {[%clk 0:00:07.6]} 33... Rf8
{[%clk 0:00:24.6]} 34. Qd3 {[%clk 0:00:06.8]} 34... Kh7 {[%clk 0:00:22.5]} 35.
Rbe1 {[%clk 0:00:06.6]} 35... Rf7 {[%clk 0:00:22.9]} 36. Re6 {[%clk 0:00:06]}
36... Raf8 {[%clk 0:00:23.3]} 37. Rf3 {[%clk 0:00:06.3]} 37... Qd8 {[%clk
0:00:17.1]} 38. Qc2 {[%clk 0:00:05.5]} 38... Rg8 {[%clk 0:00:12.3]} 39. Qf2
{[%clk 0:00:03.7]} 39... Rgf8 {[%clk 0:00:08.3]} 40. Qc2 {[%clk 0:00:04.3]}
40... Rg8 {[%clk 0:00:08.4]} 41. g4 {[%clk 0:00:04.5]} 41... hxg4 {[%clk
0:00:06.1]} 42. hxg4 {[%clk 0:00:05.4]} 42... Nxg4 {[%clk 0:00:05.8]} 43. Rxf7+
{[%clk 0:00:04.7]} 43... Kh6 {[%clk 0:00:05.4]} 44. Qd2+ {[%clk 0:00:04.8]}
44... Kh5 {[%clk 0:00:03.7]} 45. Qg2 {[%clk 0:00:03]} 45... Rh8 {[%clk 0:00:03]}
46. Qh3+ {[%clk 0:00:03.1]} 46... Kg5 {[%clk 0:00:03]} 47. Bd2+ {[%clk
0:00:03.8]} 1-0

[Event "Late-Titled-Tuesday-Blitz-May-07-2024"]
[Site "Chess.com"]
[Date "2024.05.07"]
[Round "3"]
[White "duone"]
[Black "lilylg"]
[Result "0-1"]
[WhiteElo "2431"]
[BlackElo "2251"]
[TimeControl "180+1"]
[EndTime "14:29:16 PDT"]
[Termination "lilylg won by checkmate"]

1. e4 {[%clk 0:03:00.9]} 1... c6 {[%clk 0:02:58.5]} 2. d3 {[%clk 0:02:56.2]}
2... d5 {[%clk 0:02:51.8]} 3. Nf3 {[%clk 0:02:56]} 3... g6 {[%clk 0:02:52]} 4.
Nbd2 {[%clk 0:02:54.8]} 4... Bg7 {[%clk 0:02:51.6]} 5. g3 {[%clk 0:02:55.3]}
5... e6 {[%clk 0:02:51.1]} 6. Bg2 {[%clk 0:02:55.6]} 6... Ne7 {[%clk 0:02:51.5]}
7. O-O {[%clk 0:02:55.9]} 7... O-O {[%clk 0:02:51.4]} 8. c3 {[%clk 0:02:56.3]}
8... Nd7 {[%clk 0:02:49.4]} 9. Qc2 {[%clk 0:02:56.4]} 9... f5 {[%clk 0:02:37.9]}
10. Rd1 {[%clk 0:02:53.7]} 10... Qc7 {[%clk 0:02:36.1]} 11. Nf1 {[%clk
0:02:53.3]} 11... e5 {[%clk 0:02:35.8]} 12. Ne3 {[%clk 0:02:50.6]} 12... Nf6
{[%clk 0:02:34.5]} 13. c4 {[%clk 0:02:45]} 13... dxe4 {[%clk 0:02:23]} 14. dxe4
{[%clk 0:02:34]} 14... fxe4 {[%clk 0:02:22.7]} 15. Nd2 {[%clk 0:02:32.6]} 15...
Nf5 {[%clk 0:02:21.8]} 16. Nxe4 {[%clk 0:02:32]} 16... Nd4 {[%clk 0:02:21.8]}
17. Qc3 {[%clk 0:02:22.7]} 17... Nxe4 {[%clk 0:02:15.8]} 18. Bxe4 {[%clk
0:02:21.1]} 18... Qf7 {[%clk 0:02:16.7]} 19. Qe1 {[%clk 0:02:14.6]} 19... Bf5
{[%clk 0:02:08.6]} 20. Bg2 {[%clk 0:02:05]} 20... Rad8 {[%clk 0:02:06.1]} 21.
Bd2 {[%clk 0:02:04.3]} 21... Bh3 {[%clk 0:02:00.2]} 22. Bh1 {[%clk 0:01:54.7]}
22... Bh6 {[%clk 0:01:51.5]} 23. f4 {[%clk 0:01:06.5]} 23... exf4 {[%clk
0:01:37.7]} 24. Nf1 {[%clk 0:01:04.9]} 24... Rfe8 {[%clk 0:01:34.6]} 25. Be4
{[%clk 0:01:00.4]} 25... Nf3+ {[%clk 0:01:28.4]} 26. Bxf3 {[%clk 0:01:00.3]}
26... Rxe1 {[%clk 0:01:28.1]} 27. Bxe1 {[%clk 0:01:00.9]} 27... Rxd1 {[%clk
0:01:24.6]} 28. Rxd1 {[%clk 0:00:49.4]} 28... Bxf1 {[%clk 0:01:21.7]} 29. Rd8+
{[%clk 0:00:47.8]} 29... Bf8 {[%clk 0:01:20.4]} 30. Bb4 {[%clk 0:00:44.9]} 30...
Bxc4 {[%clk 0:00:55]} 31. b3 {[%clk 0:00:32.2]} 31... Bd5 {[%clk 0:00:37.5]} 32.
Bg4 {[%clk 0:00:29.9]} 32... fxg3 {[%clk 0:00:31.9]} 33. hxg3 {[%clk 0:00:27.8]}
33... Kg7 {[%clk 0:00:31.3]} 34. Bxf8+ {[%clk 0:00:26.5]} 34... Qxf8 {[%clk
0:00:31.4]} 35. Rxf8 {[%clk 0:00:27.1]} 35... Kxf8 {[%clk 0:00:32.3]} 36. Kf2
{[%clk 0:00:26.9]} 36... Ke7 {[%clk 0:00:32]} 37. Ke3 {[%clk 0:00:27.3]} 37...
Kd6 {[%clk 0:00:32]} 38. Bc8 {[%clk 0:00:27.6]} 38... b6 {[%clk 0:00:32.2]} 39.
Kd4 {[%clk 0:00:27.7]} 39... c5+ {[%clk 0:00:32.2]} 40. Ke3 {[%clk 0:00:28.1]}
40... Ke5 {[%clk 0:00:32.4]} 41. Bg4 {[%clk 0:00:28]} 41... h5 {[%clk
0:00:31.4]} 42. Be2 {[%clk 0:00:28.4]} 42... Bf7 {[%clk 0:00:31.6]} 43. Bd3
{[%clk 0:00:27.5]} 43... g5 {[%clk 0:00:31.4]} 44. Be2 {[%clk 0:00:27.3]} 44...
h4 {[%clk 0:00:25]} 45. Kf3 {[%clk 0:00:23.1]} 45... Bh5+ {[%clk 0:00:24.8]} 46.
g4 {[%clk 0:00:22.7]} 46... Bf7 {[%clk 0:00:24.2]} 47. Kg2 {[%clk 0:00:23.2]}
47... Bd5+ {[%clk 0:00:24.3]} 48. Kh3 {[%clk 0:00:23.6]} 48... Kf4 {[%clk
0:00:24.6]} 49. Bb5 {[%clk 0:00:22.1]} 49... Be6 {[%clk 0:00:22.4]} 50. Be2
{[%clk 0:00:21.4]} 50... a6 {[%clk 0:00:20]} 51. Bd1 {[%clk 0:00:18.7]} 51... c4
{[%clk 0:00:19.3]} 52. bxc4 {[%clk 0:00:18.2]} 52... Bxc4 {[%clk 0:00:19.2]} 53.
a3 {[%clk 0:00:17.7]} 53... Bf1+ {[%clk 0:00:18]} 54. Kh2 {[%clk 0:00:18.1]}
54... Bc4 {[%clk 0:00:16.9]} 55. Kh3 {[%clk 0:00:18.1]} 55... b5 {[%clk
0:00:17.3]} 56. Kh2 {[%clk 0:00:18]} 56... a5 {[%clk 0:00:17.9]} 57. Kh3 {[%clk
0:00:14.6]} 57... b4 {[%clk 0:00:18.4]} 58. axb4 {[%clk 0:00:09.8]} 58... axb4
{[%clk 0:00:18.4]} 59. Bc2 {[%clk 0:00:10.5]} 59... b3 {[%clk 0:00:18.7]} 60.
Bb1 {[%clk 0:00:10.3]} 60... Be6 {[%clk 0:00:18.9]} 61. Kh2 {[%clk 0:00:10.9]}
61... Bxg4 {[%clk 0:00:19]} 62. Kg1 {[%clk 0:00:11.4]} 62... Bd1 {[%clk
0:00:19.3]} 63. Kh1 {[%clk 0:00:11.6]} 63... Bc2 {[%clk 0:00:19.9]} 64. Ba2
{[%clk 0:00:07.5]} 64... bxa2 {[%clk 0:00:20.1]} 65. Kg1 {[%clk 0:00:08]} 65...
a1=Q+ {[%clk 0:00:20.5]} 66. Kg2 {[%clk 0:00:08.9]} 66... Be4+ {[%clk
0:00:19.1]} 67. Kf2 {[%clk 0:00:09.4]} 67... Qb2+ {[%clk 0:00:19.3]} 68. Ke1
{[%clk 0:00:09.5]} 68... h3 {[%clk 0:00:18.4]} 69. Kd1 {[%clk 0:00:08.9]} 69...
h2 {[%clk 0:00:18.8]} 70. Ke1 {[%clk 0:00:09.3]} 70... h1=Q# {[%clk 0:00:18.9]}
0-1

[Event "Late-Titled-Tuesday-Blitz-May-07-2024"]
[Site "Chess.com"]
[Date "2024.05.07"]
[Round "3"]
[White "DonMicheleCorleone"]
[Black "Fins0905"]
[Result "0-1"]
[WhiteElo "2504"]
[BlackElo "2738"]
[TimeControl "180+1"]
[EndTime "14:29:20 PDT"]
[Termination "Fins0905 won by resignation"]

1. e4 {[%clk 0:03:00.9]} 1... d5 {[%clk 0:02:56.9]} 2. exd5 {[%clk 0:02:59.8]}
2... Qxd5 {[%clk 0:02:56.4]} 3. Nc3 {[%clk 0:03:00]} 3... Qa5 {[%clk 0:02:55.8]}
4. d4 {[%clk 0:02:57.8]} 4... Nf6 {[%clk 0:02:54.9]} 5. Bc4 {[%clk 0:02:57.6]}
5... Bg4 {[%clk 0:02:54.1]} 6. f3 {[%clk 0:02:57.7]} 6... Bd7 {[%clk 0:02:53.7]}
7. Ne2 {[%clk 0:02:56.6]} 7... e6 {[%clk 0:02:51.6]} 8. O-O {[%clk 0:02:55.2]}
8... Be7 {[%clk 0:02:38.9]} 9. Bd2 {[%clk 0:02:52.3]} 9... Qb6 {[%clk
0:02:37.8]} 10. Kh1 {[%clk 0:02:42.8]} 10... O-O {[%clk 0:02:35.4]} 11. a4
{[%clk 0:02:41.1]} 11... a5 {[%clk 0:02:32.2]} 12. Be3 {[%clk 0:02:32.6]} 12...
Nc6 {[%clk 0:02:27.3]} 13. Qd2 {[%clk 0:02:29.1]} 13... Nb4 {[%clk 0:02:26.4]}
14. Ne4 {[%clk 0:02:15.3]} 14... Nbd5 {[%clk 0:02:09.8]} 15. Bg1 {[%clk
0:02:10.9]} 15... Qb4 {[%clk 0:01:57.8]} 16. Qd3 {[%clk 0:02:04.4]} 16... Rfd8
{[%clk 0:01:40.6]} 17. c3 {[%clk 0:02:04.5]} 17... Qb6 {[%clk 0:01:41.2]} 18.
Qc2 {[%clk 0:01:37.9]} 18... Be8 {[%clk 0:01:30.3]} 19. Bd3 {[%clk 0:01:37.4]}
19... g6 {[%clk 0:01:24.5]} 20. Qc1 {[%clk 0:01:12.9]} 20... Rac8 {[%clk
0:01:19.5]} 21. Bb1 {[%clk 0:01:06.4]} 21... Qa6 {[%clk 0:01:16.1]} 22. Re1
{[%clk 0:00:56.9]} 22... Nxe4 {[%clk 0:01:07.2]} 23. fxe4 {[%clk 0:00:56.4]}
23... Nf6 {[%clk 0:01:06.8]} 24. Qe3 {[%clk 0:00:48.2]} 24... c5 {[%clk
0:01:03.8]} 25. Qf3 {[%clk 0:00:44.9]} 25... cxd4 {[%clk 0:01:03.1]} 26. Bxd4
{[%clk 0:00:45.1]} 26... Nd7 {[%clk 0:00:48.1]} 27. Bd3 {[%clk 0:00:38.9]} 27...
Qc6 {[%clk 0:00:42.1]} 28. Bb5 {[%clk 0:00:38]} 28... Qc7 {[%clk 0:00:41.8]} 29.
Rf1 {[%clk 0:00:34.6]} 29... e5 {[%clk 0:00:29]} 30. Be3 {[%clk 0:00:34.8]}
30... f6 {[%clk 0:00:22.5]} 31. Qf2 {[%clk 0:00:26.7]} 31... Kg7 {[%clk
0:00:20.5]} 32. Ng3 {[%clk 0:00:22.7]} 32... Nc5 {[%clk 0:00:13.9]} 33. Bxe8
{[%clk 0:00:17.9]} 33... Rxe8 {[%clk 0:00:14.8]} 34. h4 {[%clk 0:00:16.3]} 34...
h5 {[%clk 0:00:14.1]} 35. Qf3 {[%clk 0:00:15.6]} 35... Qd7 {[%clk 0:00:13.2]}
36. Rfd1 {[%clk 0:00:13.3]} 36... Qg4 {[%clk 0:00:12.6]} 37. Qxg4 {[%clk
0:00:13.1]} 37... hxg4 {[%clk 0:00:13.5]} 38. h5 {[%clk 0:00:12.9]} 38... gxh5
{[%clk 0:00:13.3]} 39. Nxh5+ {[%clk 0:00:12.8]} 39... Kf7 {[%clk 0:00:13.1]} 40.
Ng3 {[%clk 0:00:13.3]} 40... Ke6 {[%clk 0:00:13]} 41. Kg1 {[%clk 0:00:12.4]}
41... Red8 {[%clk 0:00:12.2]} 42. Kf1 {[%clk 0:00:11.8]} 42... Rxd1+ {[%clk
0:00:10.9]} 43. Rxd1 {[%clk 0:00:11.2]} 43... Nxa4 {[%clk 0:00:11.6]} 44. Nf5
{[%clk 0:00:09.2]} 44... Nxb2 {[%clk 0:00:11.4]} 45. Rb1 {[%clk 0:00:08.9]}
45... Nc4 {[%clk 0:00:11.5]} 46. Rxb7 {[%clk 0:00:06.8]} 46... Nxe3+ {[%clk
0:00:10.3]} 47. Nxe3 {[%clk 0:00:07.7]} 47... Rxc3 {[%clk 0:00:10.2]} 48. Rxe7+
{[%clk 0:00:06.9]} 48... Kxe7 {[%clk 0:00:10]} 49. Nd5+ {[%clk 0:00:07.3]} 49...
Kd6 {[%clk 0:00:10.7]} 50. Nxc3 {[%clk 0:00:08]} 50... Kc5 {[%clk 0:00:11.4]}
51. Ke2 {[%clk 0:00:04.5]} 51... Kd4 {[%clk 0:00:11.8]} 52. Nd5 {[%clk
0:00:04.8]} 52... f5 {[%clk 0:00:10.6]} 53. Ne7 {[%clk 0:00:02.8]} 53... Kxe4
{[%clk 0:00:10.8]} 54. Nc6 {[%clk 0:00:02.9]} 54... a4 {[%clk 0:00:11.3]} 55.
Nb4 {[%clk 0:00:03.3]} 55... a3 {[%clk 0:00:11.8]} 56. Na2 {[%clk 0:00:03.7]}
56... Kd4 {[%clk 0:00:10.5]} 57. Kd2 {[%clk 0:00:04.3]} 57... f4 {[%clk
0:00:11]} 58. Ke2 {[%clk 0:00:04.6]} 58... e4 {[%clk 0:00:11.5]} 59. Nb4 {[%clk
0:00:05]} 59... f3+ {[%clk 0:00:10.2]} 60. gxf3 {[%clk 0:00:05.6]} 60... exf3+
{[%clk 0:00:10.7]} 61. Kf2 {[%clk 0:00:06.2]} 61... Kc3 {[%clk 0:00:11.1]} 62.
Na2+ {[%clk 0:00:05.9]} 62... Kb2 {[%clk 0:00:11.3]} 63. Nb4 {[%clk 0:00:06.1]}
63... Kb3 {[%clk 0:00:11.7]} 64. Nd3 {[%clk 0:00:06]} 64... a2 {[%clk
0:00:12.2]} 65. Nc1+ {[%clk 0:00:06.3]} 65... Kb2 {[%clk 0:00:12.8]} 66. Nxa2
{[%clk 0:00:06.6]} 66... Kxa2 {[%clk 0:00:13.7]} 0-1

[Event "Late-Titled-Tuesday-Blitz-May-07-2024"]
[Site "Chess.com"]
[Date "2024.05.07"]
[Round "3"]
[White "klifus"]
[Black "azikom"]
[Result "0-1"]
[WhiteElo "2178"]
[BlackElo "2753"]
[TimeControl "180+1"]
[EndTime "14:29:21 PDT"]
[Termination "azikom won on time"]

1. Nf3 {[%clk 0:03:00.9]} 1... c5 {[%clk 0:03:00.3]} 2. g3 {[%clk 0:02:59.6]}
2... g6 {[%clk 0:03:01.2]} 3. Bg2 {[%clk 0:02:59.6]} 3... Bg7 {[%clk 0:03:02.1]}
4. O-O {[%clk 0:02:59.6]} 4... Nc6 {[%clk 0:03:02.9]} 5. c4 {[%clk 0:02:56.2]}
5... d6 {[%clk 0:03:01.1]} 6. Nc3 {[%clk 0:02:55.5]} 6... Bxc3 {[%clk
0:02:55.4]} 7. dxc3 {[%clk 0:02:49.6]} 7... Qd7 {[%clk 0:02:54.8]} 8. e4 {[%clk
0:02:39.5]} 8... Nf6 {[%clk 0:02:27.6]} 9. Re1 {[%clk 0:02:33.6]} 9... Ng4
{[%clk 0:02:07.6]} 10. h3 {[%clk 0:02:11.7]} 10... Nge5 {[%clk 0:02:06.9]} 11.
Nxe5 {[%clk 0:02:09.8]} 11... Nxe5 {[%clk 0:02:04.7]} 12. Qe2 {[%clk 0:02:05.9]}
12... b6 {[%clk 0:01:57.5]} 13. f4 {[%clk 0:02:04.3]} 13... Nc6 {[%clk 0:01:57]}
14. e5 {[%clk 0:02:01.4]} 14... dxe5 {[%clk 0:01:55.6]} 15. fxe5 {[%clk
0:02:00.4]} 15... Bb7 {[%clk 0:01:08.8]} 16. e6 {[%clk 0:01:56.9]} 16... Qxe6
{[%clk 0:01:08.5]} 17. Qxe6 {[%clk 0:01:55.6]} 17... fxe6 {[%clk 0:01:09.4]} 18.
Bg5 {[%clk 0:01:42.4]} 18... h6 {[%clk 0:01:00.4]} 19. Rxe6 {[%clk 0:01:19.7]}
19... Kd7 {[%clk 0:00:30.2]} 20. Bxc6+ {[%clk 0:01:14.3]} 20... Kxe6 {[%clk
0:00:28.6]} 21. Bxb7 {[%clk 0:01:13.9]} 21... hxg5 {[%clk 0:00:27.8]} 22. Bxa8
{[%clk 0:01:12.1]} 22... Rxa8 {[%clk 0:00:27]} 23. Re1+ {[%clk 0:01:11.3]} 23...
Kf6 {[%clk 0:00:26.7]} 24. Rd1 {[%clk 0:01:09.5]} 24... Rc8 {[%clk 0:00:14.6]}
25. Rd7 {[%clk 0:01:04.6]} 25... a5 {[%clk 0:00:14.6]} 26. Kg2 {[%clk
0:00:57.6]} 26... Rc6 {[%clk 0:00:14.6]} 27. Kf3 {[%clk 0:00:51.7]} 27... Ke6
{[%clk 0:00:14]} 28. Rd5 {[%clk 0:00:49.9]} 28... Kf6 {[%clk 0:00:12.9]} 29. Rd8
{[%clk 0:00:35.4]} 29... Re6 {[%clk 0:00:12.7]} 30. Rf8+ {[%clk 0:00:34]} 30...
Kg7 {[%clk 0:00:12.3]} 31. Rb8 {[%clk 0:00:33.1]} 31... Rd6 {[%clk 0:00:11.8]}
32. Rb7 {[%clk 0:00:32.3]} 32... Kf6 {[%clk 0:00:11.5]} 33. Ke4 {[%clk
0:00:31.2]} 33... e6 {[%clk 0:00:11]} 34. g4 {[%clk 0:00:30.1]} 34... Rc6 {[%clk
0:00:08.8]} 35. Rb8 {[%clk 0:00:30]} 35... Rd6 {[%clk 0:00:08.8]} 36. a3 {[%clk
0:00:28.9]} 36... Rc6 {[%clk 0:00:08.4]} 37. b3 {[%clk 0:00:27.6]} 37... Rd6
{[%clk 0:00:07.7]} 38. b4 {[%clk 0:00:27.6]} 38... axb4 {[%clk 0:00:07.7]} 39.
axb4 {[%clk 0:00:27.1]} 39... cxb4 {[%clk 0:00:07.3]} 40. cxb4 {[%clk
0:00:27.2]} 40... Rc6 {[%clk 0:00:07.6]} 41. Kd3 {[%clk 0:00:22.7]} 41... Rd6+
{[%clk 0:00:07.4]} 42. Kc3 {[%clk 0:00:22.2]} 42... e5 {[%clk 0:00:07.4]} 43. c5
{[%clk 0:00:20.6]} 43... bxc5 {[%clk 0:00:07.4]} 44. bxc5 {[%clk 0:00:20.5]}
44... Rd1 {[%clk 0:00:08]} 45. Rb6+ {[%clk 0:00:19.3]} 45... Kf7 {[%clk
0:00:07.8]} 46. Kc4 {[%clk 0:00:18.4]} 46... e4 {[%clk 0:00:07.6]} 47. Rb3
{[%clk 0:00:15.8]} 47... Ke6 {[%clk 0:00:06.1]} 48. Re3 {[%clk 0:00:11.4]} 48...
Ke5 {[%clk 0:00:05.9]} 49. Kb5 {[%clk 0:00:07.9]} 49... Rb1+ {[%clk 0:00:05.4]}
50. Kc6 {[%clk 0:00:06.6]} 50... Kd4 {[%clk 0:00:05.2]} 51. Re2 {[%clk
0:00:05.9]} 51... e3 {[%clk 0:00:05.2]} 52. Ra2 {[%clk 0:00:05.4]} 52... Rc1
{[%clk 0:00:03.9]} 53. Ra4+ {[%clk 0:00:03.6]} 53... Kd3 {[%clk 0:00:04]} 0-1